Workbook

Sheet Title
C1: Calculation practice activities to accompany CHAPTER 15
C3: Social Statistics in Action: A Canadian Introduction
C4: Andrea M. Noack
C6: Oxford University Press, 2018
C8: For more information, visit:
C9: https://www.oupcanada.com/catalog/9780199015214.html

Sheet Predicted Probability v1
B1: PRACTICE CALCULATING PREDICTED PROBABILITIES (LOGISTIC REGRESSION)
B3: Use the logistic regression slope and constant coefficients in the yellow highlighed cells to find the predicted probability that the dependent variable (y) is equal to 1 for a case with a "0" value on the independent dummy variable (x) and for a case with a "1" value on the independent dummy variable (x). Keep two decimal places throughout your calculations. To check your answers, click on the 'Show Answers' button.
B5: Logistic Regression Coefficients | D5: b | E5: Exp(b)
B6: Constant Coefficient (a): | D6: 1.51 | E6: 4.526730794
B7: Slope Coefficient for a Dummy Variable (b): | D7: -1.52 | E7: 0.218711887
B9: Predicted Probabilities
B10: Predicted probability that the DV (y) equals 1 for a case with a "0" value on the independent dummy variable (x): | E10: hidden | G10: Need some help?
B11: Predicted probability that the DV (y) equals 1 for a case with a "1" value on the independent dummy variable (x): | E11: hidden
B13: PREDICTED PROBABILITY CALCULATIONS FOR A CASE WITH A "0" VALUE ON THE DUMMY VARIABLE
B14: Z-value
C15: = 1.51 + (-1.52 x 0)
C16: = ? + ?
C17: = ?
B18: Predicted Probability
C19: = e¹·⁵¹ ÷ (1 + e¹·⁵¹)
C20: = ? ÷ (? + ?)
C21: = ? ÷ ?
C22: = ?
B24: PREDICTED PROBABILITY CALCULATIONS FOR A CASE WITH A "1" VALUE ON THE DUMMY VARIABLE
B25: Z-value
C26: = 1.51 + (-1.52 x 1)
C27: = ? + ?
C28: = ?
B29: Predicted Probability
C30: = e⁻⁰·⁰¹ ÷ (1 + e⁻⁰·⁰¹)
C31: = ? ÷ (? + ?)
C32: = ? ÷ ?
C33: = ?

Sheet Predicted Probability v2
B1: PRACTICE CALCULATING PREDICTED PROBABILITIES (LOGISTIC REGRESSION)
B3: Use the logistic regression slope and constant coefficients in the yellow highlighed cells to find the predicted probability that the dependent variable (y) is equal to 1 for a case with the values on the independent variables (x1, x2 and x3) specified in the yellow highlighted cells. Keep two decimal places throughout your calculations. To check your answer, click on the 'Show Answer' button.
B5: Logistic Regression Coefficients | D5: b | E5: Exp(b)
B6: Constant Coefficient (a): | D6: -0.34 | E6: 0.7117703228
B7: Slope Coefficient for Variable X1 (b1): | D7: 0.04 | E7: 1.040810774
B8: Slope Coefficient for Variable X2 (b2): | D8: -0.06 | E8: 0.9417645336
B9: Slope Coefficient for Variable X3 (b3): | D9: 1.76 | E9: 5.812437394
B11: The Case you are Making a Prediction for: | D11: Value
B12: Value on Variable X1: | D12: 31 | G12: Need some help?
B13: Value on Variable X2: | D13: 3.36
B14: Value on Variable X3 (dummy variable): | D14: 0
B16: Predicted Probability
B17: Predicted probability that the DV (y) equals 1 for the specified case: | D17: hidden
B19: PREDICTED PROBABILITY CALCULATIONS
B20: Z-value
C21: = -0.34 + (0.04 x 31) + (-0.06 x 3.36) + (1.76 x 0)
C22: = ? + ? + ? + ?
C23: = ?
B24: Predicted Probability
C25: = e⁰·⁷ ÷ (1 + e⁰·⁷)
C26: = ? ÷ (? + ?)
C27: = ? ÷ ?
C28: = ?

Sheet Log transformations
B1: LOG TRANSFORMATIONS
B3: Enter a z-value, a log odds or an odds ratio in the yellow highlighted cells to find the corresponding (natural) log transformations.
B6: FIND ez
B7: For the z-value: | E7: ez is: | F7: ='Log transformation-A'!F7 -> ← enter a z-value
B10: TRANSLATE FROM LOG ODDS (b's) TO ODDS RATIOS [EXP(b)'s]
B11: A log odds (b) of: | E11: corresponds with an odds ratio [Exp(b)] of: | G11: ='Log transformation-A'!G11 -> ← enter a log odds
B14: TRANSLATE FROM ODDS RATIOS [EXP(b)'s] TO LOG ODDS (b's)
B15: An odds ratio [Exp(b)] of: | E15: corresponds with a log odds (b) of: | G15: ='Log transformation-A'!G15 -> ← enter an odds ratio

Sheet Predicted Probability v1-A (hidden)
B1: PRACTICE CALCULATING PREDICTED PROBABILITIES (LOGISTIC REGRESSION)
B5: Logistic Regression Coefficients | D5: b | E5: Exp(b)
B6: Constant Coefficient (a): | D6: 1.51 | E6: 4.526730794 | F6: =RANDBETWEEN(-200,200)/100 -> 1.65 | G6: =EXP(F6) -> 5.206979827
B7: Slope Coefficient for a Dummy Variable (b): | D7: -1.52 | E7: 0.218711887 | F7: =RANDBETWEEN(-200,200)/100 -> 1.89 | G7: =EXP(F7) -> 6.619368681
B9: Predicted Probabilities
B10: Predicted Probability of the DV outcome for a case with a "0" value on the dummy variable: | E10: =IF(F22<0.0005,"<0.001 or 0.1%",IF(F22>0.995,">0.999 or 99.9%",CONCATENATE(F22," or ",(F22*100),"%"))) -> 0.82 or 82%
B11: Predicted Probability of the DV outcome for a case with a "1" value on the dummy variable: | E11: =IF(F33<0.0005,"<0.001 or 0.1%",IF(F33>0.995,">0.999 or 99.9%",CONCATENATE(F33," or ",(F33*100),"%"))) -> 0.5 or 50% | G11: Need some help?
B13: PREDICTED PROBABILITY CALCULATIONS FOR A CASE WITH A "0" VALUE ON THE DUMMY VARIABLE
B14: Z-value
C15: =CONCATENATE("'= ",D6," + (",D7," x 0)") -> '= 1.51 + (-1.52 x 0)
C16: =CONCATENATE("'= ",D6," + 0") -> '= 1.51 + 0
C17: =CONCATENATE("'= ",D6) -> '= 1.51
B18: Predicted Probability | F18: =D6 -> 1.51 | G18: =LEN(F18) -> 4 | J18: ·
C19: =CONCATENATE("'= e",F19," ÷ (1 + e",F19,")") -> '= e¹·⁵¹ ÷ (1 + e¹·⁵¹) | F19: =CONCATENATE(H19,H20,H21,H22,H23,H24,H25,H26) -> ¹·⁵¹ | G19: =IF($G$18>=1,MID($F$18,1,1),"") -> 1 | H19: =IF(G19=".",$J$18,IF(G19="-",$J$19,IF(G19="0",$J$20,IF(G19="1",$J$21,IF(G19="2",$J$22,IF(G19="3",$J$23,IF(G19="4",$J$24,IF(G19="5",$J$25,IF(G19="6",$J$26,IF(G19="7",$J$27,IF(G19="8",$J$28,IF(G19="9",$J$29,"")))))))))))) -> ¹ | J19: ⁻
C20: =CONCATENATE("'= ",F20," ÷ (1 + ",F20,")") -> '= 4.53 ÷ (1 + 4.53) | F20: =ROUND(EXP(D6),2) -> 4.53 | G20: =IF($G$18>=2,MID($F$18,2,1),"") -> . | H20: =IF(G20=".",$J$18,IF(G20="-",$J$19,IF(G20="0",$J$20,IF(G20="1",$J$21,IF(G20="2",$J$22,IF(G20="3",$J$23,IF(G20="4",$J$24,IF(G20="5",$J$25,IF(G20="6",$J$26,IF(G20="7",$J$27,IF(G20="8",$J$28,IF(G20="9",$J$29,"")))))))))))) -> · | J20: ⁰
C21: =CONCATENATE("'= ",F20," ÷ ",F21,) -> '= 4.53 ÷ 5.53 | F21: =F20+1 -> 5.53 | G21: =IF($G$18>=3,MID($F$18,3,1),"") -> 5 | H21: ⁵ | J21: ¹
C22: =CONCATENATE("'= ",F22) -> '= 0.82 | F22: =ROUND(F20/F21,2) -> 0.82 | G22: =IF($G$18>=4,MID($F$18,4,1),"") -> 1 | H22: ¹ | J22: ²
G23: =IF($G$18>=5,MID($F$18,5,1),"") ->  | J23: ³
B24: PREDICTED PROBABILITY CALCULATIONS FOR A CASE WITH A "1" VALUE ON THE DUMMY VARIABLE | G24: =IF($G$18>=6,MID($F$18,6,1),"") ->  | J24: ⁴
B25: Z-value | G25: =IF($G$18>=7,MID($F$18,7,1),"") ->  | J25: ⁵
C26: =CONCATENATE("'= ",D6," + (",D7," x 1)") -> '= 1.51 + (-1.52 x 1) | G26: =IF($G$18>=8,MID($F$18,8,1),"") ->  | J26: ⁶
C27: =CONCATENATE("'= ",D6," + ",F27) -> '= 1.51 + -1.52 | F27: =D7 -> -1.52 | J27: ⁷
C28: =CONCATENATE("'= ",F28) -> '= -0.01 | F28: =D6+F27 -> -0.01 | J28: ⁸
B29: Predicted Probability | F29: =F28 -> -0.01 | G29: =LEN(F29) -> 5 | J29: ⁹
C30: =CONCATENATE("'= e",F30," ÷ (1 + e",F30,")") -> '= e⁻⁰·⁰¹ ÷ (1 + e⁻⁰·⁰¹) | F30: =CONCATENATE(H30,H31,H32,H33,H34,H35,H36,H37) -> ⁻⁰·⁰¹ | G30: =IF($G$29>=1,MID($F$29,1,1),"") -> - | H30: =IF(G30=".",$J$18,IF(G30="-",$J$19,IF(G30="0",$J$20,IF(G30="1",$J$21,IF(G30="2",$J$22,IF(G30="3",$J$23,IF(G30="4",$J$24,IF(G30="5",$J$25,IF(G30="6",$J$26,IF(G30="7",$J$27,IF(G30="8",$J$28,IF(G30="9",$J$29,"")))))))))))) -> ⁻
C31: =CONCATENATE("'= ",F31," ÷ (1 + ",F31,")") -> '= 0.99 ÷ (1 + 0.99) | F31: =ROUND(EXP(F28),2) -> 0.99 | G31: =IF($G$29>=2,MID($F$29,2,1),"") -> 0 | H31: =IF(G31=".",$J$18,IF(G31="-",$J$19,IF(G31="0",$J$20,IF(G31="1",$J$21,IF(G31="2",$J$22,IF(G31="3",$J$23,IF(G31="4",$J$24,IF(G31="5",$J$25,IF(G31="6",$J$26,IF(G31="7",$J$27,IF(G31="8",$J$28,IF(G31="9",$J$29,"")))))))))))) -> ⁰
C32: =CONCATENATE("'= ",F31," ÷ ",F32,) -> '= 0.99 ÷ 1.99 | F32: =F31+1 -> 1.99 | G32: =IF($G$29>=3,MID($F$29,3,1),"") -> . | H32: ·
C33: =CONCATENATE("'= ",F33) -> '= 0.5 | F33: =ROUND(F31/F32,2) -> 0.5 | G33: =IF($G$29>=4,MID($F$29,4,1),"") -> 0 | H33: ⁰
G34: =IF($G$29>=5,MID($F$29,5,1),"") -> 1 | H34: ¹
G35: =IF($G$29>=6,MID($F$29,6,1),"") -> 
G36: =IF($G$29>=7,MID($F$29,7,1),"") -> 
G37: =IF($G$29>=8,MID($F$29,8,1),"") -> 

Sheet Predicted Probability v2-A (hidden)
B1: PRACTICE CALCULATING PREDICTED PROBABILITIES (LOGISTIC REGRESSION)
B5: Logistic Regression Coefficients | D5: b | E5: Exp(b)
B6: Constant Coefficient (a): | D6: -0.34 | E6: 0.7117703228 | G6: =RANDBETWEEN(-100,100)/100 -> -0.03 | H6: =EXP(G6) -> 0.9704455335
B7: Slope Coefficient for Variable X1 (b1): | D7: 0.04 | E7: 1.040810774 | G7: =RANDBETWEEN(1,10)/100 -> 0.02 | H7: =EXP(G7) -> 1.02020134
B8: Slope Coefficient for Variable X2 (b2): | D8: -0.06 | E8: 0.9417645336 | G8: =RANDBETWEEN(-20,-1)/100 -> -0.01 | H8: 0.9900498337
B9: Slope Coefficient for Variable X3 (b3): | D9: 1.76 | E9: 5.812437394 | G9: =RANDBETWEEN(-200,200)/100 -> 1.53 | H9: 4.618176822
B11: The Case you are Making a Prediction for: | D11: Value
B12: Value on Variable X1: | D12: 31 | G12: =RANDBETWEEN(16,40) -> 33
B13: Value on Variable X2: | D13: 3.36 | G13: =RANDBETWEEN(100,500)/100 -> 2.3
B14: Value on Variable X3 (dummy variable): | D14: 0 | G14: =RANDBETWEEN(0,1) -> 0
B16: Predicted Probability
B17: Predicted probability that the DV (y) equals 1 for the specified case: | D17: =IF(F28<0.0005,"<0.001 or 0.1%",IF(F28>0.995,">0.999 or 99.9%",CONCATENATE(F28," or ",(F28*100),"%"))) -> 0.67 or 67%
B19: PREDICTED PROBABILITY CALCULATIONS
B20: Z-value
C21: =CONCATENATE("'= ",D6," + (",D7," x ",D12,") + (",D8," x ",D13,") + (",D9," x ",D14,")") -> '= -0.34 + (0.04 x 31) + (-0.06 x 3.36) + (1.76 x 0)
C22: =CONCATENATE("'= ",D6," + (",F22,") + (",G22,") + (",H22,")") -> '= -0.34 + (1.24) + (-0.2) + (0) | F22: =ROUND(D7*D12,2) -> 1.24 | G22: =ROUND(D8*D13,2) -> -0.2 | H22: =ROUND(D9*D14,2) -> 0
C23: =CONCATENATE("'= ",F23) -> '= 0.7 | F23: =D6+F22+G22+H22 -> 0.7
B24: Predicted Probability | F24: =F23 -> 0.7 | G24: =LEN(F24) -> 3 | J24: ·
C25: =CONCATENATE("'= e",F25," ÷ (1 + e",F25,")") -> '= e⁰·⁷ ÷ (1 + e⁰·⁷) | F25: =CONCATENATE(H25,H26,H27,H28,H29,H30,H31,H32) -> ⁰·⁷ | G25: =IF($G$24>=1,MID($F$24,1,1),"") -> 0 | H25: =IF(G25=".",$J$24,IF(G25="-",$J$25,IF(G25="0",$J$26,IF(G25="1",$J$27,IF(G25="2",$J$28,IF(G25="3",$J$29,IF(G25="4",$J$30,IF(G25="5",$J$31,IF(G25="6",$J$32,IF(G25="7",$J$33,IF(G25="8",$J$34,IF(G25="9",$J$35,"")))))))))))) -> ⁰ | J25: ⁻
C26: =CONCATENATE("'= ",F26," ÷ (1 + ",F26,")") -> '= 2.01 ÷ (1 + 2.01) | F26: =ROUND(EXP(F24),2) -> 2.01 | G26: =IF($G$24>=2,MID($F$24,2,1),"") -> . | H26: =IF(G26=".",$J$24,IF(G26="-",$J$25,IF(G26="0",$J$26,IF(G26="1",$J$27,IF(G26="2",$J$28,IF(G26="3",$J$29,IF(G26="4",$J$30,IF(G26="5",$J$31,IF(G26="6",$J$32,IF(G26="7",$J$33,IF(G26="8",$J$34,IF(G26="9",$J$35,"")))))))))))) -> · | J26: ⁰
C27: =CONCATENATE("'= ",F26," ÷ ",F27,) -> '= 2.01 ÷ 3.01 | F27: =F26+1 -> 3.01 | G27: =IF($G$24>=3,MID($F$24,3,1),"") -> 7 | H27: ⁷ | J27: ¹
C28: =CONCATENATE("'= ",F28) -> '= 0.67 | F28: =ROUND(F26/F27,2) -> 0.67 | G28: =IF($G$24>=4,MID($F$24,4,1),"") ->  | J28: ²
G29: =IF($G$24>=5,MID($F$24,5,1),"") ->  | J29: ³
G30: =IF($G$24>=6,MID($F$24,6,1),"") ->  | J30: ⁴
G31: =IF($G$24>=7,MID($F$24,7,1),"") ->  | J31: ⁵
G32: =IF($G$24>=8,MID($F$24,8,1),"") ->  | J32: ⁶
J33: ⁷
J34: ⁸
J35: ⁹

Sheet Log transformation-A (hidden)
B1: AREA UNDER THE Z-DISTRIBUTION (STANDARD NORMAL DISTRIBUTION)
B6: FIND ez
B7: For the z-value: | D7: =IF(ISNUMBER('Log transformations'!D7),'Log transformations'!D7,"") ->  | E7: ez is: | F7: =IF(ISNUMBER(D7),CONCATENATE(" ",H7)," ← enter a z-value") -> ← enter a z-value | H7: =ROUND(EXP(D7),2) -> 
B10: TRANSLATE FROM LOG ODDS (b's) TO ODDS RATIOS [EXP(b)'s]
B11: A log odds (b) of: | D11: =IF(ISNUMBER('Log transformations'!D11),'Log transformations'!D11,"") ->  | E11: corresponds with an odds ratio [Exp(b)] of: | G11: =IF(ISNUMBER(D11),CONCATENATE(" ",H11)," ← enter a log odds") -> ← enter a log odds | H11: =ROUND(EXP(D11),3) -> 
B14: TRANSLATE FROM ODDS RATIOS [EXP(b)'s] TO LOG ODDS (b's)
B15: An odds ratio [Exp(b)] of: | D15: =IF(ISNUMBER('Log transformations'!D15),'Log transformations'!D15,"") ->  | E15: corresponds with a log odds (b) of: | G15: =IF(ISNUMBER(D15),CONCATENATE(" ",H15)," ← enter an odds ratio") -> ← enter an odds ratio | H15: =ROUND(LN(D15),3) -> 
